fUST/lending_fUST_20240723
["ID","MTS","AMOUNT","RATE_DAILY","PERIOD"]
[332912416,1721676657935,-501.45,0.00016437,2]
[332912417,1721676657945,-501.45,0.00016437,2]
[332912418,1721676657955,-210.1,0.00016437,2]
[332912419,1721676657965,-500.0,0.00016437,2]
[332912420,1721676657976,-501.45,0.00016437,2]
[332912421,1721676657985,-501.45,0.00016437,2]
[332912422,1721676657994,-501.45,0.00016437,2]
[332912423,1721676658005,-501.45,0.00016437,2]
[332912424,1721676658014,-501.45,0.00016437,2]
[332912425,1721676658023,-501.45,0.00016437,2]
[332912426,1721676658033,-500.0,0.00016437,2]
[332912427,1721676658043,-500.0,0.00016437,2]
[332912428,1721676658052,-500.0,0.00016437,2]
[332912429,1721676658063,-500.0,0.00016437,2]
[332912430,1721676658073,-500.0,0.00016437,2]
[332912431,1721676658082,-500.0,0.00016437,2]
[332912432,1721676658091,-620.7,0.00016437,2]
[332912433,1721676658101,-500.0,0.00016437,2]
[332912434,1721676658110,-500.0,0.00016437,2]
[332912435,1721676658120,-500.0,0.00016437,2]
[332912436,1721676658129,-500.0,0.00016437,2]
[332912437,1721676658139,-317.06961583,0.00016437,2]
[332912438,1721676658149,-500.0,0.00016437,2]
[332912439,1721676658158,-327.480184,0.00016437,2]
[332912440,1721676658168,-327.480184,0.00016437,2]
[332912441,1721676658178,-3809.07725769,0.00016438,2]
[332912442,1721676658187,-500.0,0.00016438,2]
[332912443,1721676658197,-5865.42,0.00016438,2]
[332912444,1721676658207,-500.0,0.00016438,2]
[332912445,1721676658217,-877.65,0.00016438,2]
[332912446,1721676658226,-500.0,0.00016438,2]
[332912447,1721676658236,-831.66,0.00016438,2]
[332912448,1721676658245,-500.0,0.00016438,2]
[332912449,1721676658255,-500.0,0.00016438,2]
[332912450,1721676658264,-500.0,0.00016438,2]
[332912451,1721676658273,-397.5,0.00016438,2]
[332912452,1721676658282,-539.22,0.00016438,2]
[332912453,1721676658291,-500.0,0.00016438,2]
[332912454,1721676658301,-500.0,0.00016438,2]
[332912455,1721676658311,-500.0,0.00016438,2]
[332912456,1721676658321,-500.0,0.00016438,2]
[332912457,1721676658330,-500.0,0.00016438,2]
[332912458,1721676658340,-500.0,0.00016438,2]
[332912459,1721676658349,-630.11,0.00016438,2]
[332912460,1721676658359,-516.49,0.00016438,2]
[332912461,1721676658368,-500.0,0.00016438,2]
[332912462,1721676658378,-500.0,0.00016438,2]
[332912463,1721676658388,-298.87,0.00016438,2]
[332912464,1721676658398,-598.46,0.00016438,2]
[332912465,1721676658407,-593.47,0.00016438,2]
[332912466,1721676658416,-521.07,0.00016438,2]
[332912467,1721676658427,-635.33,0.00016438,2]
[332912468,1721676658436,-500.0,0.00016438,2]
[332912469,1721676658445,-225.95,0.00016438,2]
[332912470,1721676658454,-826.61,0.00016438,2]
[332912471,1721676658465,-500.0,0.00016438,2]
[332912472,1721676658474,-397.5,0.00016438,2]
[332912473,1721676658484,-580.89,0.00016438,2]
[332912474,1721676658493,-500.0,0.00016438,2]
[332912475,1721676658502,-500.0,0.00016438,2]
[332912476,1721676658512,-500.0,0.00016438,2]
[332912477,1721676658525,-500.0,0.00016438,2]
[332912478,1721676658535,-632.02,0.00016438,2]
[332912479,1721676658545,-6122.85,0.00016438,2]
[332912480,1721676658556,-500.0,0.00016438,2]
[332912481,1721676658566,-500.0,0.00016438,2]
[332912482,1721676658576,-500.0,0.00016438,2]
[332912483,1721676658585,-500.0,0.00016438,2]
[332912484,1721676658596,-500.0,0.00016438,2]
[332912485,1721676658607,-500.0,0.00016438,2]
[332912486,1721676658616,-527.23,0.00016438,2]
[332912487,1721676658626,-1672.06,0.00016438,2]
[332912488,1721676658636,-500.0,0.00016438,2]
[332912489,1721676658645,-531.46985886,0.00016438,2]
[332912490,1721676658655,-500.0,0.00016438,2]
[332912491,1721676658664,-950.79,0.00016438,2]
[332912492,1721676658674,-500.0,0.00016438,2]
[332912493,1721676658684,-500.0,0.00016438,2]
[332912494,1721676658694,-1806.92,0.00016438,2]
[332912495,1721676658703,-500.0,0.00016438,2]
[332912496,1721676658712,-500.0,0.00016438,2]
[332912497,1721676658722,-500.0,0.00016438,2]
[332912498,1721676658732,-1508.6,0.00016438,2]
[332912499,1721676658741,-500.0,0.00016438,2]
[332912500,1721676658750,-506.88,0.00016438,2]
[332912501,1721676658760,-500.0,0.00016438,2]
[332912502,1721676658770,-500.0,0.00016438,2]
[332912503,1721676658779,-1575.24,0.00016438,2]
[332912504,1721676658789,-500.0,0.00016438,2]
[332912505,1721676658798,-751.93,0.00016438,2]
[332912506,1721676658807,-500.0,0.00016438,2]
[332912507,1721676658816,-500.0,0.00016438,2]
[332912508,1721676658825,-172.99278509,0.00016438,2]
[332912509,1721676658835,-500.0,0.00016438,2]
[332912510,1721676658845,-578.41,0.00016438,2]
[332912511,1721676658854,-1885.83,0.00016438,2]
[332912512,1721676658864,-840.73,0.00016438,2]
[332912513,1721676658874,-205.82,0.00016438,2]
[332912514,1721676658883,-500.0,0.00016438,2]
[332912515,1721676658893,-255.11,0.00016438,2]
[332912516,1721676658902,-500.0,0.00016438,2]
[332912517,1721676658911,-500.0,0.00016438,2]
[332912518,1721676658920,-500.0,0.00016438,2]
[332912519,1721676658930,-997.89,0.00016438,2]
[332912520,1721676658939,-500.0,0.00016438,2]
[332912521,1721676658949,-1938.4,0.00016438,2]
[332912522,1721676658959,-397.5,0.00016438,2]
[332912523,1721676658969,-500.0,0.00016438,2]
[332912524,1721676658978,-500.0,0.00016438,2]
[332912525,1721676658987,-685.58,0.00016438,2]
[332912526,1721676658996,-278.72,0.00016438,2]
[332912527,1721676659097,-500.0,0.00016438,2]
[332912528,1721676659106,-500.0,0.00016438,2]
[332912529,1721676659116,-500.0,0.00016438,2]
[332912530,1721676659127,-527.59,0.00016438,2]
[332912531,1721676659137,-500.0,0.00016438,2]
[332912532,1721676659146,-500.0,0.00016438,2]
[332912533,1721676659156,-500.0,0.00016438,2]
[332912534,1721676659166,-500.0,0.00016438,2]
[332912535,1721676659177,-500.0,0.00016438,2]
[332912536,1721676659188,-1886.51,0.00016438,2]
[332912537,1721676659198,-500.0,0.00016438,2]
[332912538,1721676659209,-622.12,0.00016438,2]
[332912539,1721676659220,-650.38,0.00016438,2]
[332912540,1721676659230,-500.0,0.00016438,2]
[332912541,1721676659242,-224.50165,0.00016438,2]
[332912542,1721676659253,-224.50165,0.00016438,2]
[332912543,1721676659262,-224.50165,0.00016438,2]
[332912544,1721676659271,-224.501645,0.00016438,2]
[332912545,1721676659281,-500.0,0.00016438,2]
[332912546,1721676659290,-847.83,0.00016438,2]
[332912547,1721676659299,-1737.53,0.00016438,2]
[332912548,1721676659308,-3686.48,0.00016438,2]
[332912549,1721676659318,-447.31,0.00016438,2]
[332912550,1721676659328,-500.0,0.00016438,2]
[332912551,1721676659338,-500.0,0.00016438,2]
[332912552,1721676659350,-500.0,0.00016438,2]
[332912553,1721676659363,-500.0,0.00016438,2]
[332912554,1721676659373,-500.0,0.00016438,2]
[332912555,1721676659384,-500.0,0.00016438,2]
[332912556,1721676659395,-500.0,0.00016438,2]
[332912557,1721676659407,-500.0,0.00016438,2]
[332912558,1721676659417,-307.47,0.00016438,2]
[332912559,1721676659427,-151.0,0.00016438,2]
[332912560,1721676659437,-293.856307,0.00016438,2]
[332912561,1721676659447,-336.88,0.00016438,2]
[332912562,1721676659459,-500.0,0.00016438,2]
[332912563,1721676659469,-500.0,0.00016438,2]
[332912564,1721676659479,-363.36164326,0.00016438,2]
[332912565,1721676659489,-500.0,0.00016438,2]
[332912566,1721676659499,-589.84,0.00016438,2]
[332912567,1721676659509,-500.0,0.00016438,2]
[332912568,1721676659523,-500.0,0.00016438,2]
[332912569,1721676659533,-500.0,0.00016438,2]
[332912570,1721676659542,-233.885454,0.00016438,2]
[332912571,1721676659551,-233.885454,0.00016438,2]
[332912572,1721676659562,-765.21,0.00016438,2]
[332912573,1721676659571,-500.0,0.00016438,2]
[332912574,1721676659581,-489.45,0.00016438,2]
[332912575,1721676659590,-417.54,0.00016438,2]
[332912576,1721676659605,-196.1,0.00016438,2]
[332912577,1721676659614,-500.3,0.00016438,2]
[332912578,1721676659623,-151.0,0.00016438,2]
[332912579,1721676659634,-244.231556,0.00016438,2]
[332912580,1721676659643,-261.367456,0.00016438,2]
[332912581,1721676659654,-261.367456,0.00016438,2]
[332912582,1721676659663,-151.0,0.00016438,2]
[332912583,1721676659673,-218.099786,0.00016438,2]
[332912584,1721676659682,-151.0,0.00016438,2]
[332912585,1721676659691,-295.46436202,0.00016438,2]
[332912586,1721676659700,-500.0,0.00016438,2]
[332912587,1721676659709,-165.403234,0.00016438,2]
[332912588,1721676659720,-151.0,0.00016438,2]
[332912589,1721676659729,-151.0,0.00016438,2]
[332912590,1721676659738,-327.919586,0.00016438,2]
[332912591,1721676659748,-327.919586,0.00016438,2]
[332912592,1721676659757,-151.0,0.00016438,2]
[332912593,1721676659766,-966.027216,0.00016438,2]
[332912594,1721676659776,-966.027216,0.00016438,2]
[332912595,1721676659785,-278.054906,0.00016438,2]
[332912596,1721676659796,-278.054906,0.00016438,2]
[332912597,1721676659806,-166.666666,0.00016438,2]
[332912598,1721676659815,-235.702941,0.00016438,2]
[332912599,1721676659825,-500.0,0.00016521,2]
[332912600,1721676659834,-500.0,0.00016529,2]
[332912601,1721676659844,-1770.65,0.00016529,2]
[332912602,1721676659853,-1100.38,0.00016529,2]
[332912603,1721676659864,-500.0,0.00016529,2]
[332912604,1721676659873,-500.0,0.00016529,2]
[332912605,1721676659883,-500.0,0.00016529,2]
[332912606,1721676659892,-500.0,0.00016529,2]
[332912607,1721676659901,-277.07523786,0.00016532,2]
[332912608,1721676659911,-500.0,0.00016601,2]
[332912609,1721676659921,-500.0,0.00016601,2]
[332912610,1721676659930,-500.0,0.00016601,2]
[332912611,1721676659940,-312.49,0.00016603,2]
[332912612,1721676659949,-500.0,0.00016603,2]
[332912613,1721676659959,-511.36040987,0.00016603,2]
[332912614,1721676659969,-500.0,0.00016603,2]
[332912615,1721676659979,-500.0,0.00016603,2]
[332912616,1721676659988,-154.79103211,0.00016603,2]
[332912617,1721676659999,-659.88,0.00016685,2]
[332912618,1721676660008,-627.65,0.00016685,2]
[332912619,1721676660018,-500.0,0.00016685,2]
[332912620,1721676660028,-491.18,0.00016691,2]
[332912621,1721676660037,-500.0,0.00016694,2]
[332912622,1721676660047,-500.0,0.00016694,2]
[332912623,1721676660060,-500.0,0.00016694,2]
[332912624,1721676660078,-564.12,0.00016694,2]
[332912625,1721676660095,-270.15,0.00016694,2]
[332912626,1721676660107,-500.0,0.00016694,2]
[332912627,1721676660122,-500.0,0.00016694,2]
[332912628,1721676660137,-500.0,0.00016694,2]
[332912629,1721676660151,-586.93942597,0.00016694,2]
[332912630,1721676660167,-213.48,0.00016694,2]
[332912631,1721676660184,-500.0,0.00016694,2]
[332912632,1721676660197,-166.76,0.00016694,2]
[332912633,1721676660212,-500.0,0.00016694,2]
[332912634,1721676660229,-500.0,0.00016694,2]
[332912635,1721676660242,-491.18,0.000167,2]
[332912636,1721676660259,-500.0,0.000167,2]
[332912637,1721676660274,-500.0,0.000167,2]
[332912638,1721676660292,-311.64,0.000167,2]
[332912639,1721676660311,-500.0,0.000167,2]
[332912640,1721676660326,-500.0,0.000167,2]
[332912641,1721676660340,-167.15,0.00016701,2]
[332912642,1721676660351,-510.64,0.00016701,2]
[332912643,1721676660364,-500.0,0.00016701,2]
[332912644,1721676660380,-500.0,0.00016701,2]
[332912645,1721676660396,-591.82,0.00016701,2]
[332912646,1721676660411,-500.0,0.00016701,2]
[332912647,1721676660425,-500.0,0.00016701,2]
[332912648,1721676660442,-500.0,0.00016701,2]
[332912649,1721676660454,-500.0,0.00016701,2]
[332912650,1721676660468,-500.0,0.00016702,2]
[332912651,1721676660482,-164.04,0.00016702,2]
[332912652,1721676660495,-500.0,0.00016702,2]
[332912653,1721676660508,-571.24,0.00016702,2]
[332912654,1721676660525,-494.73,0.00016702,2]
[332912655,1721676660539,-500.0,0.00016702,2]
[332912656,1721676660553,-500.0,0.00016702,2]
[332912657,1721676660565,-500.0,0.00016702,2]
[332912658,1721676660578,-539.22,0.00016711,2]
[332912659,1721676660590,-500.0,0.00016711,2]
[332912660,1721676660604,-500.0,0.00016711,2]
[332912661,1721676660617,-2184.75,0.00016711,2]
[332912662,1721676660630,-1529.76,0.00016711,2]
[332912663,1721676660643,-500.0,0.00016711,2]
[332912664,1721676660656,-500.0,0.00016711,2]
[332912665,1721676660669,-500.0,0.00016711,2]
[332912666,1721676660683,-341.62,0.00016711,2]
[332912667,1721676660698,-226.79,0.00016711,2]
[332912668,1721676660711,-500.0,0.00016711,2]
[332912669,1721676660725,-1968.9,0.00016711,2]
[332912670,1721676660736,-1968.9,0.00016711,2]
[332912671,1721676660749,-1968.9,0.00016711,2]
[332912672,1721676660762,-1968.9,0.00016711,2]
[332912673,1721676660774,-1968.9,0.00016711,2]
[332912674,1721676660787,-1968.9,0.00016711,2]
[332912675,1721676660800,-1968.9,0.00016711,2]
[332912676,1721676660812,-1968.9,0.00016711,2]
[332912677,1721676660824,-1968.9,0.00016711,2]
[332912678,1721676660837,-1968.93814257,0.00016711,2]
[332912679,1721676660849,-598.51,0.00016711,2]
[332912680,1721676660861,-500.0,0.00016711,2]
[332912681,1721676660873,-500.0,0.00016711,2]
[332912682,1721676660885,-500.0,0.00016711,2]
[332912683,1721676660898,-501.45,0.00016711,2]
[332912684,1721676660910,-501.45,0.00016711,2]
[332912685,1721676660922,-501.45,0.00016711,2]
[332912686,1721676660935,-501.45,0.00016711,2]
[332912687,1721676660948,-501.45,0.00016711,2]
[332912688,1721676660961,-501.45,0.00016711,2]
[332912689,1721676660976,-501.45,0.00016711,2]
[332912690,1721676660990,-501.45,0.00016711,2]
[332912691,1721676661002,-501.45,0.00016711,2]
[332912692,1721676661014,-501.48514018,0.00016711,2]
[332912693,1721676661026,-500.0,0.00016711,2]
[332912694,1721676661040,-500.0,0.00016711,2]
[332912695,1721676661054,-500.0,0.00016711,2]
[332912696,1721676661068,-500.0,0.00016711,2]
[332912697,1721676661082,-500.0,0.00016711,2]
[332912698,1721676661095,-500.0,0.00016711,2]
[332912699,1721676661108,-620.7,0.00016711,2]
[332912700,1721676661121,-500.0,0.00016711,2]
[332912701,1721676661133,-262.90599564,0.00016711,2]
[332912702,1721676661145,-500.0,0.00016711,2]
[332912703,1721676661158,-500.0,0.00016711,2]
[332912704,1721676661174,-86388.47923029,0.00016712,5]
[332912705,1721676661187,-500.0,0.00016712,2]
[332912706,1721676661200,-500.0,0.00016712,2]
[332912707,1721676661212,-500.0,0.00016712,2]
[332912708,1721676661229,-683.88,0.00016712,2]
[332912709,1721676661242,-2306.83,0.00016712,2]
[332912710,1721676661256,-500.0,0.00016712,2]
[332912711,1721676661271,-500.0,0.00016712,2]
[332912712,1721676661284,-500.0,0.00016712,2]
[332912713,1721676661298,-500.0,0.00016712,2]
[332912714,1721676661311,-539.84,0.00016712,2]
[332912715,1721676661325,-2033.74,0.00016712,2]
[332912716,1721676661338,-500.0,0.00016712,2]
[332912717,1721676661352,-500.0,0.00016712,2]
[332912718,1721676661514,-500.0,0.00016712,2]
[332912719,1721676661533,-163.08748387,0.00016712,2]
[332912720,1721676661544,-1177.69,0.00016712,2]
[332912721,1721676661554,-735.43,0.00016712,2]
[332912722,1721676661565,-554.94,0.00016712,2]
[332912723,1721676661575,-500.0,0.00016712,2]
[332912724,1721676661585,-549.02,0.00016712,2]
[332912725,1721676661597,-1031.38,0.00016712,2]
[332912726,1721676661607,-500.0,0.00016712,2]
[332912727,1721676661617,-714.38,0.00016712,2]
[332912728,1721676661627,-500.0,0.00016712,2]
[332912729,1721676661637,-505.12,0.00016712,2]
[332912730,1721676661648,-1365.28,0.00016712,2]
[332912731,1721676661658,-231.41041008,0.00016712,2]
[332912732,1721676661667,-647.07,0.00016712,2]
[332912733,1721676661677,-589.48,0.00016712,2]
[332912734,1721676661689,-500.0,0.00016712,2]
[332912735,1721676661699,-768.59,0.00016712,2]
[332912736,1721676661711,-647.55,0.00016712,2]
[332912737,1721676661722,-500.0,0.00016712,2]
[332912738,1721676661731,-953.2,0.00016712,2]
[332912739,1721676661740,-500.0,0.00016712,2]
[332912740,1721676661749,-874.1,0.00016712,2]
[332912741,1721676661758,-519.25,0.00016712,2]
[332912742,1721676661768,-884.66,0.00016712,2]
[332912743,1721676661779,-1057.52,0.00016712,2]
[332912744,1721676661789,-1889.7,0.00016712,2]
[332912745,1721676661800,-500.0,0.00016712,2]
[332912746,1721676661810,-1132.04,0.00016712,2]
[332912747,1721676661821,-666.49,0.00016712,2]
[332912748,1721676661832,-668.28,0.00016712,2]
[332912749,1721676661843,-500.0,0.00016712,2]
[332912750,1721676661852,-1624.09,0.00016712,2]
[332912751,1721676661862,-261.05353704,0.00016712,2]
[332912752,1721676661872,-976.27,0.00016712,2]
[332912753,1721676661882,-642.19,0.00016712,2]
[332912754,1721676661892,-552.84,0.00016712,2]
[332912755,1721676661902,-837.86,0.00016712,2]
[332912756,1721676661912,-838.14,0.00016712,2]
[332912757,1721676661921,-500.0,0.00016712,2]
[332912758,1721676661931,-2035.58,0.00016712,2]
[332912759,1721676661942,-554.09,0.00016712,2]
[332912760,1721676661952,-500.0,0.00016712,2]
[332912761,1721676661961,-1328.22,0.00016712,2]
[332912762,1721676661973,-500.0,0.00016712,2]
[332912763,1721676661984,-506.13,0.00016712,2]
[332912764,1721676661993,-1470.26,0.00016712,2]
[332912765,1721676662003,-2054.5,0.00016712,2]
[332912766,1721676662011,-628.44,0.00016712,2]
[332912767,1721676662021,-500.0,0.00016712,2]
[332912768,1721676662031,-500.0,0.00016712,2]
[332912769,1721676662041,-700.9,0.00016712,2]
[332912770,1721676662050,-500.0,0.00016712,2]
[332912771,1721676662061,-500.0,0.00016712,2]
[332912772,1721676662073,-630.92,0.00016712,2]
[332912773,1721676662085,-1078.09,0.00016712,2]
[332912774,1721676662096,-816.07,0.00016712,2]
[332912775,1721676662106,-500.0,0.00016712,2]
[332912776,1721676662115,-627.68,0.00016712,2]
[332912777,1721676662126,-604.38,0.00016712,2]
[332912778,1721676662136,-649.28,0.00016712,2]
[332912779,1721676662146,-2006.04,0.00016712,2]
[332912780,1721676662156,-500.0,0.00016712,2]
[332912781,1721676662165,-500.0,0.00016712,2]
[332912782,1721676662175,-527.61,0.00016712,2]
[332912783,1721676662184,-500.0,0.00016712,2]
[332912784,1721676662193,-500.0,0.00016712,2]
[332912785,1721676662203,-436.22770611,0.00016712,2]
[332912786,1721676662212,-666.18,0.00016712,2]
[332912787,1721676662223,-859.08,0.00016712,2]
[332912788,1721676662233,-3069.31,0.00016712,2]
[332912789,1721676662242,-500.0,0.00016712,2]
[332912790,1721676662252,-500.0,0.00016712,2]
[332912791,1721676662263,-1517.82,0.00016712,2]
[332912792,1721676662272,-1176.08,0.00016712,2]
[332912793,1721676662281,-500.0,0.00016712,2]
[332912794,1721676662291,-500.0,0.00016712,2]
[332912795,1721676662301,-500.0,0.00016712,2]
[332912796,1721676662311,-1445.42,0.00016712,2]
[332912797,1721676662320,-500.0,0.00016712,2]
[332912798,1721676662329,-500.0,0.00016712,2]
[332912799,1721676662339,-2045.09,0.00016712,2]
[332912800,1721676662348,-771.46,0.00016712,2]
[332912801,1721676662357,-500.0,0.00016712,2]
[332912802,1721676662366,-500.0,0.00016712,2]
[332912803,1721676662376,-500.0,0.00016712,2]
[332912804,1721676662386,-930.2,0.00016712,2]
[332912805,1721676662395,-684.13,0.00016712,2]
[332912806,1721676662404,-500.0,0.00016712,2]
[332912807,1721676662414,-687.94,0.00016712,2]
[332912808,1721676662424,-1866.61,0.00016712,2]
[332912809,1721676662433,-1337.16,0.00016712,2]
[332912810,1721676662442,-565.6,0.00016712,2]
[332912811,1721676662452,-561.68,0.00016712,2]
[332912812,1721676662461,-723.1,0.00016712,2]
[332912813,1721676662475,-500.0,0.00016712,2]
[332912814,1721676662485,-1520.82,0.00016712,2]
[332912815,1721676662495,-1951.93,0.00016712,2]
[332912816,1721676662504,-2114.25,0.00016712,2]
[332912817,1721676662515,-1164.77,0.00016712,2]
[332912818,1721676662529,-500.0,0.00016712,2]
[332912819,1721676662538,-1320.34,0.00016712,2]
[332912820,1721676662548,-744.8,0.00016712,2]
[332912821,1721676662559,-1724.01,0.00016712,2]
[332912822,1721676662569,-500.0,0.00016712,2]
[332912823,1721676662579,-1333.01,0.00016712,2]
[332912824,1721676662588,-293.94143533,0.00016712,2]
[332912825,1721676662599,-504.86,0.00016712,2]
[332912826,1721676662610,-531.31,0.00016712,2]
[332912827,1721676662620,-2564.77,0.00016712,2]
[332912828,1721676662630,-503.98,0.00016712,2]
[332912829,1721676662640,-1473.72,0.00016712,2]
[332912830,1721676662651,-500.0,0.00016712,2]
[332912831,1721676662661,-579.86,0.00016712,2]
[332912832,1721676662672,-674.71,0.00016712,2]
[332912833,1721676662682,-1005.89,0.00016712,2]
[332912834,1721676662692,-500.0,0.00016712,2]
[332912835,1721676662702,-500.0,0.00016712,2]
[332912836,1721676662711,-1341.62,0.00016712,2]
[332912837,1721676662722,-1204.73,0.00016712,2]
[332912838,1721676662731,-11882.11116092,0.00016712,2]
[332912839,1721676663104,-1059.24883908,0.00016712,2]
[332912840,1721676663114,-1907.18,0.00016712,2]
[332912841,1721676663125,-500.0,0.00016712,2]
[332912842,1721676663135,-3689.8,0.00016712,2]
[332912843,1721676663144,-500.0,0.00016712,2]
[332912844,1721676663154,-500.0,0.00016712,2]
[332912845,1721676663165,-3041.94,0.00016712,2]
[332912846,1721676663175,-1624.15,0.00016712,2]
[332912847,1721676663185,-1054.8,0.00016712,2]
[332912848,1721676663196,-2090.47,0.00016712,2]
[332912849,1721676663207,-1806.74,0.00016712,2]
[332912850,1721676663218,-2202.13,0.00016712,2]
[332912851,1721676663228,-500.0,0.00016712,2]
[332912852,1721676663239,-500.0,0.00016712,2]
[332912853,1721676663248,-1540.72511287,0.00016712,2]
[332912854,1721676663285,-2149.31548844,8.45e-05,2]
[332912855,1721676663344,-1483.05203679,8.45e-05,2]
[332912856,1721676663359,-3951.59933714,8.45e-05,2]
[332912857,1721676663371,-6709.60172565,8.45e-05,2]
[332912858,1721676663381,-672.75488713,0.00016712,2]
[332912859,1721676663391,-4016.4,0.00016712,2]
[332912860,1721676663401,-500.0,0.00016712,2]
[332912861,1721676663411,-500.0,0.00016712,2]
[332912862,1721676663422,-500.0,0.00016712,2]
[332912863,1721676663432,-2197.7,0.00016712,2]
[332912864,1721676663443,-1723.55,0.00016712,2]
[332912865,1721676663453,-500.0,0.00016712,2]
[332912866,1721676663463,-5397.5,0.00016712,2]
[332912867,1721676663474,-652.01,0.00016712,2]
[332912868,1721676663483,-1092.54,0.00016712,2]
[332912869,1721676663494,-993.63,0.00016712,2]
[332912870,1721676663504,-917.62,0.00016712,2]
[332912871,1721676663514,-500.0,0.00016712,2]
[332912872,1721676663529,-716.45,0.00016712,2]
[332912873,1721676663539,-4132.02,0.00016712,2]
[332912874,1721676663548,-500.0,0.00016712,2]
[332912875,1721676663557,-2222.11,0.00016712,2]
[332912876,1721676663570,-818.39,0.00016712,2]
[332912877,1721676663580,-935.93,0.00016712,2]
[332912878,1721676663592,-7400.98,0.00016712,2]
[332912879,1721676663604,-500.0,0.00016712,2]
[332912880,1721676663614,-930.77,0.00016712,2]
[332912881,1721676663626,-500.0,0.00016712,2]
[332912882,1721676663636,-734.72,0.00016712,2]
[332912883,1721676663646,-500.0,0.00016712,2]
[332912884,1721676663657,-123.71855066,0.00016712,2]
[332912885,1721676663671,-376.28144934,0.00016712,2]
[332912886,1721676663683,-595.71855066,0.00016712,2]
[332912887,1721676663730,-499.78027732,0.00010959,2]
[332912888,1721676663744,-204.64972268,0.00010959,2]
[332912889,1721676663754,-298.56,0.00013698,2]
[332912890,1721676663764,-1074.25144934,0.00016712,2]
[332912891,1721676663774,-214.42882798,0.00016712,2]
[332912892,1721676663786,-636.18117202,0.00016712,2]
[332912893,1721676663796,-552.12,0.00016712,2]
[332912894,1721676663808,-500.0,0.00016712,2]
[332912895,1721676663819,-930.18,0.00016712,2]
[332912896,1721676663829,-500.0,0.00016712,2]
[332912897,1721676663839,-1082.74,0.00016712,2]
[332912898,1721676663848,-1077.15,0.00016712,2]
[332912899,1721676663858,-2665.28,0.00016712,2]
[332912900,1721676663868,-1492.38,0.00016712,2]
[332912901,1721676663878,-500.0,0.00016712,2]
[332912902,1721676663887,-1378.02,0.00016712,2]
[332912903,1721676663897,-1450.96,0.00016712,2]
[332912904,1721676664027,-500.0,0.00016712,2]
[332912905,1721676664037,-500.0,0.00016712,2]
[332912906,1721676664047,-500.0,0.00016712,2]
[332912907,1721676664057,-559.28,0.00016712,2]
[332912908,1721676664067,-776.21,0.00016712,2]
[332912909,1721676664077,-508.21,0.00016712,2]
[332912910,1721676664087,-406.79512934,0.00016712,2]
[332912911,1721676664100,-315.73487066,0.00016712,2]
[332912912,1721676664110,-1011.22,0.00016712,2]
[332912913,1721676664119,-500.0,0.00016712,2]
[332912914,1721676664130,-521.74,0.00016712,2]
[332912915,1721676664140,-1538.99,0.00016712,2]